bitfinex/quotes_ETHUSD_20260310
["timestamp","ask_amount","ask_price","bid_price","bid_amount"]
[1773143402554,1.73000389,2065.2,2064.9,1.85989165]
[1773143403031,0.0504238,2065.3,2065.0,1.83790551]
[1773143403379,0.002,2065.3,2065.0,1.83790551]
[1773143404156,0.002,2065.3,2065.1,1.7916569]
[1773143404478,0.002,2065.3,2064.9,1.21070061]
[1773143404664,0.002,2065.3,2065.0,3.6886569]
[1773143405033,0.002,2065.3,2065.1,1.7916569]
[1773143407187,0.002,2065.3,2065.1,3.00224529]
[1773143409068,0.002,2065.3,2065.1,1.7916569]
[1773143410801,0.002,2065.3,2065.1,3.00224529]
[1773143411153,0.002,2065.3,2065.2,0.01531908]
[1773143411387,0.002,2065.3,2065.2,1.80697598]
[1773143412088,0.002,2065.3,2065.2,1.7916569]
[1773143413176,0.002,2065.3,2065.1,3.00324529]
[1773143413563,0.002,2065.3,2065.1,3.00324579]
[1773143414390,0.002,2065.3,2065.1,1.7926569]
[1773143414885,0.002,2065.3,2065.1,3.00325052]
[1773143419368,0.002,2065.3,2065.1,1.7926569]
[1773143419690,0.002,2065.3,2065.1,3.0032381]
[1773143420059,1.72890946,2065.3,2065.1,0.001]
[1773143423859,1.72690946,2065.2,2065.1,0.001]
[1773143431292,1.67690946,2065.2,2065.1,0.001]
[1773143431691,1.72890946,2065.3,2065.1,0.001]
[1773143433772,2.93939794,2065.3,2065.1,0.001]
[1773143434400,1.7449101,2065.2,2065.1,0.001]
[1773143445027,1.7449101,2065.1,2064.8,0.001]
[1773143445230,1.7449101,2065.1,2064.8,1.21173791]
[1773143445508,1.7933339,2065.2,2064.9,1.80198899]
[1773143446288,3.00387592,2065.2,2064.9,1.80198899]
[1773143449906,3.00387592,2065.2,2064.8,1.21173791]
[1773143450115,3.00387592,2065.2,2064.8,1.67675342]
[1773143450296,3.00387592,2065.2,2064.8,2.88751705]
[1773143452114,3.00387592,2065.2,2065.1,0.001]
[1773143452720,3.00587592,2065.2,2065.1,0.001]
[1773143456802,0.0504238,2065.2,2065.1,0.001]
[1773143457390,0.0504238,2065.2,2065.1,1.67675342]
[1773143457391,0.002,2065.2,2065.1,1.67675342]
[1773143460193,0.002,2065.5,2065.2,1.67575342]
[1773143461802,0.002,2065.5,2065.3,1.67575342]
[1773143463523,0.002,2065.7,2065.4,1.81944526]
[1773143464024,0.002,2065.7,2065.4,3.02982287]
[1773143464324,2.59687521,2066.1,2065.4,3.02982287]
[1773143464325,1.77398169,2066.2,2065.8,1.81944526]
[1773143465398,1.77398169,2066.2,2065.5,1.81944526]
[1773143465829,1.77398169,2066.1,2065.5,1.81944526]
[1773143466509,1.77398169,2066.0,2065.6,1.21030209]
[1773143466689,1.77398169,2066.0,2065.6,3.02974735]
[1773143470003,1.77398169,2066.0,2065.7,1.81944526]
[1773143470510,2.98405419,2066.0,2065.7,1.81944526]
[1773143470707,1.77398169,2065.9,2065.6,3.84]
[1773143470906,1.77398169,2065.7,2065.3,3.0298832]
[1773143471324,1.77398169,2065.7,2065.4,1.86786203]
[1773143473404,1.77398169,2065.9,2065.6,1.81944526]
[1773143473732,1.77398169,2065.9,2065.6,1.86785734]
[1773143474030,1.77398169,2065.9,2065.6,1.81944526]
[1773143474209,1.77398169,2065.9,2065.5,1.21036068]
[1773143474409,1.77398169,2065.9,2065.5,3.02980594]
[1773143475901,4.84012878,2066.1,2065.6,1.81944526]
[1773143475902,2.98403368,2066.1,2065.6,1.81944526]
[1773143476101,1.77398169,2066.0,2065.6,1.81944526]
[1773143476324,0.002,2065.7,2065.6,1.81944526]
[1773143477204,1.77598169,2065.7,2065.5,0.001]
[1773143477404,0.002,2065.7,2065.5,3.03079923]
[1773143477722,0.002,2065.7,2065.5,3.07921365]
[1773143478442,0.002,2065.7,2065.5,3.03079923]
[1773143480117,2.9839096,2066.3,2065.8,1.81944526]
[1773143480313,1.21195317,2066.2,2065.8,1.81944526]
[1773143480519,1.77398169,2066.1,2065.8,1.81944526]
[1773143480830,1.77398169,2066.1,2065.6,0.04841208]
[1773143481141,1.77398169,2066.1,2065.6,1.81944526]
[1773143481639,1.77398169,2065.9,2065.6,3.02974283]
[1773143482440,1.77398169,2065.9,2065.6,3.02974123]
[1773143482656,1.77398169,2065.9,2065.6,1.81944526]
[1773143482949,1.77398169,2065.9,2065.5,3.10434603]
[1773143483337,1.77398169,2065.9,2065.5,0.001]
[1773143483854,1.77398169,2065.8,2065.5,0.001]
[1773143487050,1.77398169,2065.8,2065.5,1.82044526]
[1773143487205,1.77398169,2066.0,2065.5,1.82044526]
[1773143487409,1.77398169,2066.0,2065.7,1.81944526]
[1773143488543,1.77398169,2066.0,2065.8,1.21018491]
[1773143489048,1.77398169,2066.1,2065.8,3.02963017]
[1773143489413,0.002,2066.2,2065.8,3.02963017]
[1773143489414,0.002,2066.2,2065.9,1.81944526]
[1773143489924,0.002,2066.1,2065.9,1.81944526]
[1773143490109,0.002,2066.1,2065.9,3.71344526]
[1773143490309,0.002,2066.1,2066.0,1.81944526]
[1773143491131,0.002,2066.1,2066.0,3.02951302]
[1773143491441,0.002,2066.1,2066.0,1.81944526]
[1773143491825,0.002,2066.1,2065.9,4.92353501]
[1773143492031,1.77598169,2066.1,2065.9,1.894]
[1773143492233,1.77598169,2066.1,2065.7,1.21123698]
[1773143492441,1.77598169,2066.1,2065.7,3.03068224]
[1773143493642,1.80082327,2066.0,2065.7,1.82044526]
[1773143494221,1.80082327,2066.0,2065.7,3.03068117]
[1773143497741,1.80082327,2066.0,2065.7,1.82044526]
[1773143497936,1.80082327,2066.0,2065.7,3.03068155]
[1773143498430,0.002,2066.1,2065.8,1.72107489]
[1773143498742,0.002,2066.2,2066.0,1.72107489]
[1773143500444,3.01042265,2066.8,2066.1,1.21000919]
[1773143500650,1.80082327,2066.7,2066.1,1.21000919]
[1773143500822,1.80082327,2066.7,2066.0,2.93110056]
[1773143501344,1.80082327,2066.6,2066.0,1.72107489]
[1773143502030,0.002,2066.1,2066.0,1.72107489]
[1773143503528,0.002,2066.1,2066.0,2.93114265]
[1773143506656,0.002,2066.1,2066.0,1.72107489]
[1773143508666,0.002,2066.1,2066.0,2.93114265]
[1773143508836,0.002,2066.1,2066.0,1.72107489]
[1773143510137,0.002,2066.1,2065.9,6.85653606]
[1773143511549,0.002,2066.1,2066.0,1.80545804]
[1773143514168,0.002,2066.1,2066.0,3.0155258]
[1773143516467,0.002,2066.1,2066.0,3.0165258]
[1773143517266,0.002,2066.1,2066.0,1.80645804]
[1773143517639,0.002,2066.1,2066.0,3.0165258]
[1773143519172,0.002,2066.1,2066.0,1.21106776]
[1773143519742,0.002,2066.1,2066.0,0.001]
[1773143520141,0.002,2066.1,2066.0,1.21106776]
[1773143521567,0.002,2066.1,2065.8,1.80545804]
[1773143521752,0.002,2066.1,2066.0,1.80545804]
[1773143522351,1.7632026,2066.5,2066.1,1.80545804]
[1773143522573,1.7632026,2066.5,2066.1,1.8538584]
[1773143522743,1.7632026,2066.6,2066.2,3.70845804]
[1773143524372,1.7632026,2066.6,2066.3,2.96493645]
[1773143525373,4.83771786,2067.1,2066.4,1.75504438]
[1773143525374,1.83924224,2067.0,2066.4,1.75504438]
[1773143526476,1.83924224,2066.8,2066.4,1.75504438]
[1773143526677,1.83924224,2066.8,2066.4,2.96487645]
[1773143530289,3.04866607,2067.1,2066.5,1.75504438]
[1773143530898,1.83924224,2067.0,2066.5,1.75504438]
[1773143531062,1.83924224,2067.0,2066.4,1.20983207]
[1773143531261,0.002,2066.8,2066.4,1.20983207]
[1773143531464,1.83924224,2066.7,2066.4,2.96487645]
[1773143532566,1.83924224,2066.7,2066.4,1.75504438]
[1773143532766,1.83924224,2066.7,2066.4,2.96484512]
[1773143533292,1.83924224,2066.7,2066.2,1.903]
[1773143533293,1.83924224,2066.6,2066.2,1.8034424]
[1773143533505,1.83924224,2066.6,2066.2,1.75504438]
[1773143535103,1.84124224,2066.8,2066.4,1.75504438]
[1773143535601,1.84124224,2066.8,2066.4,3.65904438]
[1773143537306,3.05084865,2066.8,2066.5,1.75504438]
[1773143537979,1.83924224,2066.7,2066.3,1.75504438]
[1773143539409,3.04890443,2066.7,2066.3,2.9649158]
[1773143541407,1.83924224,2066.6,2066.4,1.907]
[1773143542902,3.05088955,2066.8,2066.4,3.66204438]
[1773143543205,1.84124224,2066.8,2066.4,4.87186662]
[1773143545294,0.002,2066.6,2066.4,4.87186662]
[1773143546805,0.002,2066.6,2066.4,1.75504438]
[1773143547003,0.002,2066.6,2066.4,1.909]
[1773143547209,0.002,2066.6,2066.5,1.75504438]
[1773143548615,0.002,2066.8,2066.5,1.80343537]
[1773143548916,0.002,2066.8,2066.7,1.75504438]
[1773143550201,0.002,2066.8,2066.6,1.91]
[1773143550818,1.83924224,2067.1,2066.6,4.87475148]
[1773143551024,1.20941258,2067.2,2066.7,1.75504438]
[1773143551390,1.83924224,2067.1,2066.7,1.75504438]
[1773143552017,1.83924224,2067.0,2066.8,1.91]
[1773143552420,1.83924224,2067.0,2066.6,2.96475148]
[1773143552590,1.83924224,2067.0,2066.7,1.911]
[1773143554131,1.78746881,2066.9,2066.5,1.83546503]
[1773143555605,1.78746881,2067.1,2066.5,1.83546503]
[1773143556125,1.20948234,2067.0,2066.5,3.04519515]
[1773143556297,1.78746881,2066.9,2066.5,3.04519515]
[1773143556717,1.78746881,2066.9,2066.5,1.83546503]
[1773143556921,1.78746881,2066.9,2066.5,3.04522626]
[1773143557427,1.78746881,2066.9,2066.3,1.83646503]
[1773143557630,1.78746881,2067.0,2066.4,1.88385837]
[1773143558137,1.78746881,2067.0,2066.5,1.20977498]
[1773143558294,1.78746881,2067.0,2066.6,1.83546503]
[1773143558500,1.78746881,2067.0,2066.7,0.001]
[1773143558832,0.002,2066.8,2066.7,0.001]
[1773143559608,0.002,2067.0,2066.7,1.83646503]
[1773143560208,0.002,2067.0,2066.7,3.04611451]
[1773143560904,0.002,2067.0,2066.7,4.95611451]
[1773143563522,1.78746881,2066.9,2066.5,3.04623615]
[1773143563824,1.78746881,2066.9,2066.6,1.911]
[1773143564124,1.78746881,2066.9,2066.6,3.74646503]
[1773143565323,1.78746881,2066.9,2066.6,1.912]
[1773143566499,1.78746881,2066.9,2066.6,3.72819968]
[1773143566704,1.78746881,2066.9,2066.6,3.67981103]
[1773143567633,1.78746881,2066.9,2066.6,4.88949937]
[1773143568550,1.80121679,2066.8,2066.6,1.912]
[1773143569031,1.80321679,2067.0,2066.6,4.88952563]
[1773143569736,3.01270376,2067.0,2066.6,4.88952563]
[1773143569933,1.80121679,2066.9,2066.5,4.89156246]
[1773143571331,1.80121679,2066.9,2066.5,3.68181103]
[1773143571534,1.80121679,2066.9,2066.5,4.89158269]
[1773143571913,1.80121679,2066.8,2066.5,4.89158019]
[1773143573135,0.002,2066.6,2066.5,4.89158495]
[1773143575911,0.002,2066.6,2066.5,4.89158601]
[1773143579531,0.002,2066.6,2066.5,0.001]
[1773143579834,0.002,2066.6,2066.5,1.916]
[1773143580837,0.002,2066.6,2066.5,0.001]
[1773143581041,0.002,2066.6,2066.5,1.916]
[1773143581239,0.002,2066.6,2066.5,4.89358601]
[1773143581414,0.002,2066.6,2066.5,0.001]
[1773143581826,1.80321679,2066.6,2066.5,1.916]
[1773143582413,1.25469566,2066.5,2066.3,0.001]
[1773143585859,1.26496941,2066.4,2066.2,0.001]
[1773143586016,1.26496941,2066.4,2066.3,1.916]
[1773143586417,1.26496941,2066.4,2066.3,1.73803349]
[1773143586617,1.25812836,2066.3,2066.2,1.916]
[1773143587348,1.26012836,2066.3,2066.2,1.916]
[1773143589337,1.26012836,2066.3,2066.0,2.89827655]
[1773143589537,1.26012836,2066.3,2066.1,1.916]
[1773143590941,1.26012836,2066.3,2066.0,2.89827655]
[1773143591148,1.26012836,2066.3,2066.1,1.916]
[1773143591751,1.26012836,2066.3,2066.0,2.89827655]
[1773143592153,1.26012836,2066.3,2066.1,1.916]
[1773143592950,1.22047923,2066.2,2066.0,0.001]
[1773143593131,1.22047923,2066.2,2065.8,1.68820922]
[1773143593327,1.2110848,2066.1,2065.8,1.21118298]
[1773143593532,1.2110848,2066.1,2065.9,1.913]
[1773143594349,1.2110848,2066.1,2065.8,2.8983922]
[1773143594551,1.2110848,2066.1,2066.0,1.914]
[1773143595818,1.19258107,2066.0,2065.7,0.001]
[1773143596120,1.19258107,2066.0,2065.7,1.915]
[1773143596550,1.19258107,2066.0,2065.7,4.81245254]
[1773143596958,1.19258107,2066.0,2065.7,3.60220922]
[1773143597451,1.19258107,2066.0,2065.7,4.81244353]
[1773143597818,2.40268047,2066.0,2065.7,3.60220922]
[1773143598020,1.19258107,2066.0,2065.7,3.60220922]
[1773143598255,1.19258107,2066.0,2065.7,4.81244848]
[1773143598550,1.19258107,2066.0,2065.7,4.81245144]
[1773143598751,1.19258107,2066.0,2065.7,3.60220922]
[1773143599249,1.19258107,2066.0,2065.7,4.81244949]
[1773143600431,1.20312039,2066.2,2065.8,1.68720922]
[1773143600632,1.20312039,2066.2,2065.9,0.001]
[1773143601143,2.41307367,2066.2,2065.9,0.001]
[1773143601338,1.19423648,2066.1,2065.9,0.001]
[1773143603157,1.175696,2066.0,2065.8,1.914]
[1773143604060,1.175696,2066.1,2065.8,1.914]
[1773143605257,1.15850165,2066.0,2065.8,1.914]
[1773143606658,1.15850165,2066.0,2065.7,2.89840362]
[1773143606863,1.15850165,2066.0,2065.8,1.915]
[1773143607637,2.36857201,2066.0,2065.8,1.915]
[1773143608358,1.15850165,2066.0,2065.8,1.915]
[1773143609063,2.36861315,2066.0,2065.8,1.915]
[1773143609471,1.15850165,2066.0,2065.8,1.915]
[1773143610093,1.12496586,2065.9,2065.7,0.001]
[1773143612066,2.3350987,2065.9,2065.7,0.001]
[1773143612366,1.10055087,2065.8,2065.7,0.001]
[1773143612565,1.10255087,2065.8,2065.7,0.001]
[1773143616683,0.002,2065.8,2065.7,0.001]
[1773143619080,1.05058566,2065.8,2065.6,0.001]
[1773143621662,2.26077214,2065.8,2065.6,0.001]
[1773143623284,2.26077214,2065.8,2065.4,1.7633739]
[1773143623680,2.26077214,2065.8,2065.4,2.9737887]
[1773143624183,1.05058566,2065.8,2065.4,2.9737887]
[1773143624369,2.26077725,2065.8,2065.4,1.7633739]
[1773143624687,1.00335686,2065.7,2065.4,1.7633739]
[1773143625824,1.00535686,2065.7,2065.4,1.7633739]
[1773143626101,1.00535686,2065.7,2065.5,0.001]
[1773143628501,2.21563579,2065.7,2065.5,0.001]
[1773143628661,1.00535686,2065.7,2065.5,0.001]
[1773143634006,2.21561035,2065.7,2065.5,0.001]
[1773143635500,1.21225349,2065.7,2065.5,0.001]
[1773143635817,1.21225349,2065.7,2065.5,1.68374894]
[1773143636621,0.002,2065.7,2065.5,1.68374894]
[1773143636796,0.002,2065.7,2065.6,1.68274894]
[1773143636974,0.002,2065.9,2065.7,1.68274894]
[1773143638088,0.002,2065.9,2065.7,1.68374894]
[1773143639285,0.002,2065.9,2065.8,1.68274894]
[1773143640279,0.002,2065.9,2065.7,1.2112388]
[1773143640594,0.002,2065.9,2065.7,1.68374894]
[1773143642896,0.002,2066.2,2065.9,1.68274894]
[1773143645300,0.88689983,2066.2,2065.9,1.68274894]
[1773143645500,0.88689983,2066.2,2065.8,1.53069015]
[1773143646820,0.87881672,2066.1,2065.7,0.001]
[1773143647127,2.08884841,2066.1,2065.7,1.53169015]
[1773143647619,0.87478552,2066.2,2065.8,1.53069015]
[1773143648318,2.08473835,2066.2,2065.8,1.53069015]
[1773143649493,2.08473835,2066.2,2065.8,2.74087197]
[1773143649990,2.08473835,2066.2,2065.9,0.001]
[1773143650407,0.002,2066.0,2065.9,0.001]
[1773143652216,0.002,2066.5,2066.0,1.53069015]
[1773143652524,0.002,2066.5,2066.1,3.44169015]
[1773143652525,1.96412393,2066.5,2066.1,3.44169015]
[1773143654009,0.75434597,2066.5,2066.1,4.65167024]
[1773143654412,1.96412119,2066.5,2066.1,4.65167024]
[1773143655025,1.96412119,2066.5,2066.1,3.44169015]
[1773143655392,1.96412119,2066.5,2066.1,4.65169244]
[1773143655723,1.96412119,2066.5,2066.2,1.53069015]
[1773143655896,0.002,2066.5,2066.2,1.53069015]
[1773143657727,0.7291648,2066.5,2066.0,1.21003394]
[1773143658034,0.7291648,2066.5,2066.0,3.12103394]
[1773143658238,0.72167844,2066.4,2066.0,3.12003394]
[1773143658409,0.72167844,2066.4,2066.0,4.65072409]
[1773143659238,0.72167844,2066.4,2066.1,1.53069015]
[1773143659433,1.21177728,2066.5,2066.1,1.53069015]
[1773143659601,1.92801318,2066.5,2066.1,1.53069015]
[1773143660234,0.7182359,2066.5,2066.1,2.74067967]
[1773143661936,0.68700713,2066.4,2066.1,2.74067967]
[1773143662424,0.68168014,2066.3,2065.9,3.44169015]
[1773143662635,0.68168014,2066.3,2066.1,0.001]
[1773143662823,0.68168014,2066.3,2065.9,4.65181255]
[1773143662824,0.68368014,2066.2,2065.9,0.001]
[1773143664602,0.67117373,2066.1,2065.9,0.001]
[1773143667228,0.66079425,2066.0,2065.9,0.001]
[1773143669145,0.66079425,2066.0,2065.7,1.53169015]
[1773143669308,0.66079425,2066.0,2065.7,2.74192527]
[1773143671028,1.85417011,2066.2,2065.8,1.53069015]
[1773143671229,0.63721831,2066.1,2065.8,1.53069015]
[1773143674130,1.82416148,2066.0,2065.7,1.5174689]
[1773143674334,0.61409372,2066.0,2065.7,2.72769992]
[1773143674531,1.82163731,2066.1,2065.7,1.5174689]
[1773143674835,1.82163731,2066.1,2065.7,2.72771212]
[1773143675006,1.82163731,2066.1,2066.0,0.001]
[1773143675206,1.82163731,2066.1,2065.8,0.001]
[1773143679042,0.59258661,2065.9,2065.6,0.001]
[1773143679408,0.59258661,2065.9,2065.6,1.5174689]
[1773143679634,0.59258661,2065.9,2065.6,2.72776729]
[1773143679820,1.21001905,2066.1,2065.6,2.72776729]
[1773143680023,0.58790732,2066.0,2065.6,2.72776729]
[1773143680221,0.58790732,2066.0,2065.6,1.5174689]
[1773143680416,0.58790732,2066.0,2065.6,2.72776524]
[1773143680936,0.58790732,2066.0,2065.6,2.7277625]
[1773143681634,0.57869931,2065.9,2065.6,1.5174689]
[1773143682022,0.57869931,2065.9,2065.6,2.72776993]
[1773143682222,0.57411688,2066.1,2065.7,1.5164689]
[1773143683010,1.78416126,2066.1,2065.7,1.5164689]
[1773143684642,0.56504528,2065.9,2065.4,2.7268501]
[1773143685551,0.56504528,2065.9,2065.5,1.5164689]
[1773143686263,1.77517468,2065.9,2065.5,1.5164689]
[1773143686623,0.56504528,2065.9,2065.5,1.5164689]
[1773143686961,1.77517754,2065.9,2065.6,1.59535471]
[1773143687144,1.77717754,2065.9,2065.6,1.59535471]
[1773143687734,1.77717754,2065.9,2065.6,0.001]
[1773143688668,1.49677138,2065.5,2065.3,0.001]
[1773143688960,1.49677138,2065.7,2065.3,2.80582933]
[1773143689328,1.49677138,2065.7,2065.3,1.59535471]
[1773143689741,1.21026094,2065.7,2065.3,1.59535471]
[1773143689920,1.49677138,2065.6,2065.3,1.59535471]
[1773143691854,2.70710152,2065.6,2065.2,1.59535471]
[1773143692563,2.70710152,2065.6,2065.2,2.80588775]
[1773143694060,1.49677138,2065.5,2065.2,2.80588775]
[1773143695259,1.49677138,2065.5,2065.2,0.001]
[1773143695560,1.49677138,2065.5,2065.2,2.80589029]
[1773143695859,6.33792949,2065.7,2065.3,1.59435471]
[1773143696237,1.49677138,2065.6,2065.3,1.59435471]
[1773143696437,2.43467749,2065.6,2065.1,0.001]
[1773143696642,6.33792949,2065.7,2065.0,1.59535471]
[1773143696842,1.49677138,2065.5,2065.0,1.59535471]
[1773143697766,1.49677138,2065.3,2065.0,0.001]
[1773143698177,1.2105365,2065.2,2065.0,0.001]
[1773143699277,2.70730788,2065.2,2065.0,0.001]
[1773143700013,1.49677138,2065.2,2065.0,0.001]
[1773143700291,2.70729429,2065.3,2065.0,0.001]
[1773143700450,2.70729429,2065.3,2065.0,1.59535471]
[1773143701291,0.001,2065.4,2065.0,1.59535471]
[1773143701455,0.001,2065.4,2065.2,1.59435471]
[1773143701852,1.49677138,2065.8,2065.2,1.59435471]
[1773143702068,1.49877138,2065.9,2065.2,1.59435471]
[1773143702271,2.70891859,2065.9,2065.4,1.59435471]
[1773143702477,1.21213624,2065.9,2065.4,1.59435471]
[1773143703654,2.82194888,2065.9,2065.4,1.59435471]
[1773143705081,1.60981264,2065.8,2065.4,1.59435471]
[1773143706659,1.60981264,2065.8,2065.3,2.76181215]
[1773143707565,1.60981264,2065.7,2065.3,2.76181215]
[1773143709180,1.60981264,2065.7,2065.4,1.55133426]
[1773143709568,1.60981264,2065.7,2065.4,2.76175249]
[1773143711221,1.60981264,2065.7,2065.5,0.0011]
[1773143711390,1.61081264,2065.7,2065.5,0.0011]
[1773143711691,0.001,2065.7,2065.5,0.0011]
[1773143713188,1.61081264,2065.7,2065.5,0.0011]
[1773143713577,1.61081264,2065.7,2065.3,1.55243426]
[1773143713780,2.82011473,2065.6,2065.3,0.0011]
[1773143715111,1.60981264,2065.5,2065.3,0.0011]
[1773143715801,2.82021554,2065.5,2065.3,0.0011]
[1773143719008,1.60981264,2065.4,2065.3,0.0011]
[1773143719409,1.60981264,2065.6,2065.3,0.0011]
[1773143721807,1.21036068,2065.5,2065.3,0.0011]
[1773143722177,2.82017332,2065.5,2065.3,0.0011]
[1773143729011,1.60981264,2065.4,2065.3,0.0011]
[1773143730107,2.82023192,2065.4,2065.3,0.0011]
[1773143730405,2.82023192,2065.4,2065.0,1.55233426]
[1773143730605,0.93790611,2065.3,2065.0,0.001]
[1773143730776,0.93790611,2065.3,2064.8,0.001]
[1773143730777,1.60981264,2065.2,2064.8,0.001]
[1773143732496,2.82040776,2065.1,2064.8,0.001]
[1773143735096,2.82040776,2065.1,2065.0,0.001]
[1773143735888,2.82040776,2065.1,2064.5,0.0011]
[1773143735889,1.46241843,2065.0,2064.5,0.0011]
[1773143736086,1.21059512,2065.1,2064.2,0.0011]
[1773143736087,2.40125574,2064.6,2064.2,0.0011]
[1773143736288,1.46241843,2064.6,2064.2,1.4317374]
[1773143736921,2.6733364,2064.6,2064.2,1.4317374]
[1773143738209,2.6733364,2064.6,2063.9,1.17863892]
[1773143738210,1.46241843,2064.5,2063.9,1.17863892]
[1773143739131,1.21100561,2064.4,2063.9,1.17863892]
[1773143739333,2.67342404,2064.4,2064.0,1.21201076]
[1773143740335,1.46241843,2064.3,2063.8,2.4200769]
[1773143740535,1.46241843,2064.3,2063.9,1.20776065]
[1773143740705,2.67341268,2064.5,2063.9,1.20776065]
[1773143741406,1.46241843,2064.4,2064.0,1.20353308]
[1773143743710,1.46241843,2064.3,2064.0,1.20353308]
[1773143746623,2.67348613,2064.3,2064.0,1.20353308]
[1773143747039,2.67348613,2064.3,2063.8,1.0881453]
[1773143747040,1.5307862,2064.2,2063.8,1.0881453]
[1773143747210,2.46962351,2064.0,2063.6,1.0871453]
[1773143747735,1.5307862,2063.9,2063.3,1.08317965]
[1773143748337,1.5307862,2063.9,2063.7,0.0011]
[1773143748841,1.5307862,2063.7,2063.4,1.08200723]
[1773143750938,2.74223871,2063.7,2063.4,1.08200723]
[1773143751135,1.5307862,2063.6,2063.2,1.07276318]
[1773143751841,0.93883731,2063.4,2063.0,1.06889217]
[1773143752014,1.5307862,2063.4,2063.0,1.06889217]
[1773143752567,1.5307862,2063.4,2062.8,1.06504141]
[1773143752568,1.5307862,2063.3,2062.8,1.06504141]
[1773143753048,1.5307862,2063.0,2062.5,1.21208998]
[1773143753223,1.48146743,2063.0,2062.6,0.04629927]
[1773143753620,2.74253736,2063.2,2062.6,0.04629927]
[1773143754148,1.5307862,2063.1,2062.6,0.04629927]
[1773143755552,1.5307862,2063.1,2062.7,1.28482856]
[1773143756649,1.5307862,2063.1,2062.8,0.06982915]
[1773143758531,2.74255616,2063.1,2062.8,0.06982915]
[1773143758942,1.5307862,2063.1,2062.8,0.06982915]
[1773143759254,2.74256271,2063.1,2062.8,0.06982915]
[1773143759647,1.5307862,2063.1,2062.8,0.06982915]
[1773143760019,1.5307862,2063.1,2062.9,0.0011]
[1773143760424,0.93883731,2063.4,2062.6,0.05903696]
[1773143760425,0.93883731,2063.0,2062.6,0.05903696]
[1773143760624,2.74243743,2063.3,2062.6,0.05903696]
[1773143761051,1.5307862,2063.3,2062.6,0.05903696]
[1773143761445,1.5307862,2063.3,2062.6,1.93303696]
[1773143761649,1.5307862,2063.3,2062.7,0.06214052]
[1773143763135,2.74233292,2063.5,2062.9,0.05923854]
[1773143763959,2.74233292,2063.5,2062.8,1.21194492]
[1773143763960,1.49127759,2063.4,2062.8,1.21194492]
[1773143764261,1.49127759,2063.4,2062.8,1.28291834]
[1773143764663,1.49127759,2063.1,2062.8,0.07097342]
[1773143764847,1.49127759,2063.1,2062.6,1.28347528]
[1773143765051,1.49127759,2062.9,2062.6,0.07146145]
[1773143765435,1.49127759,2062.9,2062.6,0.0011]
[1773143765635,1.49127759,2062.9,2062.6,1.28061426]
[1773143766145,1.49127759,2062.9,2062.6,0.06857344]
[1773143767164,1.49127759,2062.8,2062.6,0.0011]
[1773143768479,2.70322251,2062.8,2062.6,0.0011]
[1773143768776,1.49127759,2062.8,2062.6,0.0011]
[1773143773768,1.49233406,2063.1,2062.6,0.0282079]
[1773143774478,1.49233406,2063.1,2062.8,0.0011]
[1773143775975,1.49233406,2063.1,2062.8,0.01964499]
[1773143779586,1.49233406,2063.1,2062.8,1.23158879]
[1773143780053,1.49233406,2063.0,2062.6,1.21489907]
[1773143780252,1.49233406,2063.0,2062.6,1.21313447]
[1773143780673,1.49233406,2063.1,2062.6,1.21313447]
[1773143781012,0.001,2063.3,2063.0,0.93883731]
[1773143781158,2.70481329,2063.6,2063.2,0.93883731]
[1773143781353,2.70481329,2063.6,2063.1,1.21176869]
[1773143781554,1.49233406,2063.5,2062.7,1.21200368]
[1773143781855,1.49233406,2063.5,2062.7,1.876]
[1773143781856,1.49233406,2063.4,2062.7,1.876]
[1773143782281,1.49233406,2063.4,2062.7,1.92448014]
[1773143782691,1.49233406,2063.4,2062.7,1.876]
[1773143782890,2.70483445,2063.6,2062.8,0.9873151]
[1773143783099,2.70483445,2063.6,2062.8,0.93883731]
[1773143783999,1.21250039,2063.6,2062.9,1.21188617]
[1773143784208,1.49233406,2063.5,2062.9,1.21188617]
[1773143785096,1.49233406,2063.5,2062.7,4.84796631]
[1773143785278,1.49233406,2063.5,2062.8,1.877]
[1773143785481,1.49233406,2063.5,2062.9,0.04847544]
[1773143785982,1.49233406,2063.5,2062.8,1.877]
[1773143786187,1.21159251,2063.4,2062.9,1.21188617]
[1773143786573,2.70392657,2063.4,2062.9,1.21188617]
[1773143787107,2.70392657,2063.4,2062.8,3.08889664]
[1773143787304,1.49818612,2063.3,2062.8,1.21189664]
[1773143787599,1.49818612,2063.3,2062.8,3.08889664]
[1773143788505,1.21159251,2063.4,2062.8,3.08889664]
[1773143788728,2.70977863,2063.4,2062.8,3.08889664]
[1773143788879,1.49818612,2063.3,2063.0,0.0011]
[1773143789084,0.001,2063.2,2063.0,0.0011]
[1773143789284,1.49918612,2063.2,2063.0,0.0011]
[1773143791099,1.49818612,2063.1,2063.0,0.0011]
[1773143792073,1.49818612,2063.1,2062.8,0.0011]
[1773143792990,2.7099618,2063.1,2062.8,0.0011]
[1773143793400,1.49863612,2063.2,2062.8,0.0011]
[1773143793584,1.49763612,2063.1,2062.8,0.0011]
[1773143796507,2.7094072,2063.1,2062.8,0.0011]
[1773143796986,1.49763612,2063.1,2062.8,0.0011]
[1773143798002,1.48885803,2063.0,2062.8,0.0011]
[1773143798498,1.48885803,2063.0,2062.6,0.0011]
[1773143800507,2.7007442,2062.9,2062.6,0.0011]
[1773143801098,2.7017442,2062.9,2062.6,0.0011]
[1773143801338,1.48885803,2062.8,2062.6,0.0011]
[1773143802605,1.48885803,2062.6,2062.3,0.0011]
[1773143802815,1.48885803,2062.6,2062.0,6.6187718]
[1773143802816,1.48885803,2062.5,2062.0,0.0484966]
[1773143803118,1.48885803,2062.3,2061.8,1.21249049]
[1773143805702,1.48885803,2062.2,2061.6,3.08965036]
[1773143807431,1.48885803,2062.2,2061.6,1.21265036]
[1773143807602,1.48885803,2062.2,2061.6,3.08965036]
[1773143808003,1.48885803,2062.5,2061.7,0.98897032]
[1773143808211,1.48885803,2062.5,2061.7,0.04850366]
[1773143809722,1.48885803,2062.3,2061.6,3.08965036]
[1773143812931,1.48885803,2062.3,2061.9,0.0011]
[1773143813234,0.001,2062.3,2061.9,0.0011]
[1773143813929,0.001,2062.3,2061.9,0.04959895]
[1773143815210,0.001,2062.3,2062.0,1.21241513]
[1773143815407,0.001,2062.3,2062.1,0.04849425]
[1773143816820,1.48985803,2062.3,2062.0,1.21241513]
[1773143817509,1.48985803,2062.3,2061.9,0.0011]
[1773143821641,1.48885803,2062.2,2061.9,0.0011]